bitfinex/quotes_ETHUSD_20251008
["timestamp","ask_amount","ask_price","bid_price","bid_amount"]
[1759941243616,2.23942803,4465.5,4464.3,4.77599283]
[1759941243820,2.23944968,4465.4,4464.3,5.47759856]
[1759941244034,2.23938681,4465.6,4464.3,3.23760573]
[1759941244338,2.23939231,4465.5,4464.3,4.77599283]
[1759941244821,0.01,4465.9,4464.3,4.77599283]
[1759941245422,2.2393967,4465.5,4464.3,4.77599283]
[1759941245621,2.23924082,4465.8,4464.3,4.77599283]
[1759941245804,2.23928187,4465.8,4464.3,4.77599283]
[1759941246002,0.01,4465.9,4464.3,4.77599283]
[1759941246003,2.23930262,4465.7,4464.3,4.77599283]
[1759941246623,2.23934497,4465.6,4464.3,4.77599283]
[1759941247004,2.24919571,4465.9,4464.3,4.77599283]
[1759941247005,0.01,4465.9,4464.3,4.77599283]
[1759941247921,0.01,4465.9,4464.3,5.73700383]
[1759941248294,0.01,4465.9,4464.3,5.40959283]
[1759941249099,0.01,4465.9,4464.3,5.40859283]
[1759941250200,0.01,4465.9,4464.3,5.49820267]
[1759941250412,0.01,4465.9,4464.3,6.50493]
[1759941250608,0.01,4465.9,4464.3,6.41532016]
[1759941251115,0.01,4465.9,4464.3,6.52652016]
[1759941251717,0.01,4465.9,4464.3,8.34522791]
[1759941252044,2.24923252,4465.9,4464.3,6.52652016]
[1759941252243,0.01,4465.9,4464.3,6.52652016]
[1759941252550,2.24919979,4465.9,4464.3,5.89292016]
[1759941253121,2.23929827,4465.7,4464.3,5.89292016]
[1759941253455,0.01,4465.9,4464.3,5.89292016]
[1759941253658,2.23977755,4464.8,4464.3,0.1112]
[1759941253827,1.932,4464.9,4464.3,0.1112]
[1759941254018,0.012,4464.9,4464.3,2.6462]
[1759941254442,2.23978466,4464.8,4464.3,2.6462]
[1759941254644,0.012,4464.9,4464.3,2.6462]
[1759941255046,2.23978639,4464.8,4464.3,2.6462]
[1759941255248,2.23980196,4464.7,4464.3,2.6462]
[1759941255455,2.25172666,4464.9,4464.3,2.6462]
[1759941255622,0.012,4464.9,4464.3,2.6462]
[1759941255946,2.23978397,4464.8,4464.3,2.6462]
[1759941256137,2.23975491,4464.8,4464.3,2.6462]
[1759941256312,2.25170586,4464.9,4464.3,2.6462]
[1759941256518,2.23975657,4464.8,4464.3,2.6462]
[1759941256714,2.24055901,4464.4,4464.3,2.6462]
[1759941256948,0.00061636,4464.4,4464.3,2.6462]
[1759941257348,2.24055901,4464.4,4464.3,2.6462]
[1759941258955,0.6336,4464.3,4462.3,0.001]
[1759941259124,2.46529635,4462.5,4462.3,0.001]
[1759941259319,6.0604106,4462.5,4462.3,0.001]
[1759941259519,7.55733383,4462.5,4462.3,0.001]
[1759941259721,5.88221958,4462.5,4462.3,0.001]
[1759941259956,2.94212323,4462.5,4462.4,1.678]
[1759941260157,1.92,4462.5,4462.4,1.678]
[1759941262820,4.16089635,4462.5,4462.4,1.678]
[1759941263421,1.92,4462.5,4462.4,1.678]
[1759941263652,4.16089635,4462.5,4462.4,1.678]
[1759941263829,4.62139635,4462.5,4462.4,1.678]
[1759941264022,5.30761625,4462.5,4462.4,1.678]
[1759941264345,5.41882448,4462.5,4462.4,0.001]
[1759941264720,4.95832448,4462.5,4462.4,0.001]
[1759941264953,5.41882448,4462.5,4462.4,0.001]
[1759941267171,2.24114746,4462.0,4461.9,0.001]
[1759941267337,2.46526221,4462.0,4461.9,0.001]
[1759941267670,4.84576221,4462.0,4461.9,0.001]
[1759941268672,4.38526221,4462.0,4461.9,0.001]
[1759941269166,4.84576221,4462.0,4461.9,0.001]
[1759941272143,4.38526221,4462.0,4461.9,0.001]
[1759941272560,4.84576221,4462.0,4461.9,0.001]
[1759941275685,5.47936221,4462.0,4461.9,0.001]
[1759941282071,8.01636221,4462.0,4461.9,0.001]
[1759941284573,5.47936221,4462.0,4461.9,0.001]
[1759941284778,8.01636221,4462.0,4461.9,0.001]
[1759941286717,2.87494839,4461.6,4461.5,1e-08]
[1759941287016,2.87514935,4461.2,4461.1,1e-08]
[1759941287218,7.33214935,4461.2,4461.1,1e-08]
[1759941287513,7.77734935,4461.2,4461.1,1e-08]
[1759941296536,5.24034935,4461.2,4461.1,1e-08]
[1759941296713,4.16154935,4461.2,4461.1,1e-08]
[1759941297211,4.60704935,4461.2,4461.1,1e-08]
[1759941297803,4.16154935,4461.2,4461.1,1e-08]
[1759941298022,4.60704935,4461.2,4461.1,1e-08]
[1759941299159,2.7613,4461.7,4461.1,1e-08]
[1759941299160,0.79742813,4462.5,4461.1,1e-08]
[1759941299433,0.4455,4462.4,4461.1,1e-08]
[1759941299594,2.2413364,4461.7,4461.1,1e-08]
[1759941299800,2.24125911,4461.8,4461.1,1e-08]
[1759941300039,2.24130045,4461.7,4461.1,1e-08]
[1759941300343,1.92,4462.3,4461.1,1e-08]
[1759941300519,0.4455,4462.2,4461.1,1e-08]
[1759941300721,2.24125381,4461.8,4461.1,1e-08]
[1759941300925,2.24141525,4461.5,4461.1,1e-08]
[1759941301103,2.241359,4461.6,4461.1,1e-08]
[1759941301837,2.24150613,4461.3,4461.1,1e-08]
[1759941302209,2.24094657,4462.4,4461.1,1e-08]
[1759941302413,2.24111114,4462.1,4461.2,2.2415056]
[1759941302721,0.002,4462.8,4461.7,2.24128109]
[1759941302935,2.24079593,4462.7,4461.8,0.02241247]
[1759941303139,2.24096382,4462.4,4461.8,0.02241247]
[1759941303364,0.002,4462.8,4461.8,0.02241247]
[1759941303559,4.48159186,4462.7,4461.3,0.45065685]
[1759941303718,2.24119464,4462.0,4461.3,0.45065685]
[1759941303918,2.24117722,4462.0,4461.1,1.87200001]
[1759941304244,2.2430474,4462.2,4461.2,2.24154731]
[1759941304645,2.24109724,4462.1,4461.3,2.24148796]
[1759941305026,2.24120277,4461.9,4461.1,4.11355531]
[1759941305223,0.002,4462.2,4461.1,1.87200001]
[1759941305419,2.24119769,4461.9,4461.1,1.87200001]
[1759941305660,2.24152921,4461.3,4461.1,1.87200001]
[1759941306447,0.6397,4462.2,4461.1,1.87200001]
[1759941306667,0.6397,4462.2,4461.2,0.02241549]
[1759941306668,0.002,4462.2,4461.2,0.02241549]
[1759941306950,0.002,4462.2,4461.1,1.87200001]
[1759941307466,2.24129659,4461.8,4461.1,1.87200001]
[1759941307624,0.002,4462.2,4461.1,1.87200001]
[1759941307967,2.24133176,4461.7,4461.1,1.87200001]
[1759941308271,2.24154935,4461.2,4461.1,0.00100001]
[1759941309022,2.24147941,4461.4,4461.1,0.00100001]
[1759941309023,2.24144505,4461.5,4461.1,0.00100001]
[1759941309221,2.4778953,4462.1,4461.1,0.11300001]
[1759941309468,0.002,4462.2,4462.0,2.24114725]
[1759941309771,0.002,4462.2,4462.0,2.537]
[1759941309929,0.002,4462.2,4462.0,4.7781296]
[1759941311673,0.002,4462.2,4462.0,2.537]
[1759941314691,0.002,4462.2,4462.0,4.7781095]
[1759941315002,0.002,4462.2,4462.0,5.48004938]
[1759941315971,0.002,4462.2,4462.0,3.23893988]
[1759941316707,0.002,4462.2,4462.0,5.48007191]
[1759941317313,0.002,4462.2,4462.1,2.24109724]
[1759941317496,0.002,4462.2,4462.1,2.26350821]
[1759941317806,0.002,4462.2,4462.1,3.01545872]
[1759941319413,0.002,4462.2,4462.1,3.12745872]
[1759941320187,0.002,4462.2,4462.1,3.14986969]
[1759941320414,0.002,4462.2,4462.1,3.12745872]
[1759941321122,0.002,4462.2,4462.1,3.57308344]
[1759941324225,0.002,4462.2,4462.1,3.12745872]
[1759941326238,0.002,4462.2,4462.1,3.58056729]
[1759941327722,0.002,4462.2,4462.1,3.12745872]
[1759941332341,0.002,4462.2,4462.1,0.112]
[1759941332539,0.002,4462.2,4462.1,2.37550821]
[1759941332939,0.002,4462.2,4462.1,0.112]
[1759941334518,0.002,4462.2,4462.1,2.35309724]
[1759941334723,0.002,4462.2,4462.1,0.112]
[1759941336430,0.002,4462.2,4462.1,2.35309724]
[1759941337126,0.002,4462.2,4462.1,3.08863683]
[1759941338425,0.002,4462.2,4462.1,3.06622586]
[1759941338643,0.002,4462.2,4462.1,3.08863683]
[1759941339146,0.002,4462.2,4462.1,3.06622586]
[1759941341759,0.002,4462.2,4462.1,3.08863683]
[1759941342249,0.002,4462.2,4462.1,3.06622586]
[1759941342428,0.002,4462.2,4462.1,2.37550821]
[1759941343954,0.002,4462.2,4462.1,2.35309724]
[1759941344943,0.002,4462.2,4462.1,2.37550821]
[1759941349386,0.00041203,4462.2,4462.1,2.37550821]
[1759941353385,0.00041203,4462.2,4462.1,2.26350821]
[1759941353585,0.00041203,4462.2,4462.1,2.94526696]
[1759941353763,0.00041203,4462.2,4462.1,0.70416972]
[1759941353963,0.00041203,4462.2,4462.0,4.77811214]
[1759941354164,0.00041203,4462.2,4462.0,2.537]
[1759941354569,0.00041203,4462.2,4462.0,4.77813667]
[1759941355287,0.00041203,4462.2,4462.1,2.24109724]
[1759941355488,0.00041203,4462.2,4462.0,2.537]
[1759941356195,0.00041203,4462.2,4462.0,4.77813889]
[1759941356696,0.00041203,4462.2,4462.0,2.537]
[1759941357196,0.00041203,4462.2,4462.1,2.535]
[1759941360003,2.24145904,4462.2,4462.1,2.535]
[1759941360219,2.24147284,4461.4,4461.1,0.00100001]
[1759941360372,0.48351268,4461.3,4461.1,0.00100001]
[1759941360573,2.24149911,4461.3,4461.2,2.535]
[1759941360892,5.75178084,4461.3,4461.2,2.535]
[1759941361091,0.6336,4461.1,4460.8,2.535]
[1759941361288,4.76491551,4460.9,4460.8,2.535]
[1759941361602,2.24180061,4460.7,4460.6,2.536]
[1759941361809,5.11848234,4460.7,4460.6,2.536]
[1759941362010,4.64538234,4460.7,4460.6,2.536]
[1759941362904,2.40358173,4460.7,4460.6,2.536]
[1759941363158,1.92,4460.7,4460.6,2.536]
[1759941363435,1.92,4460.7,4460.6,2.7896]
[1759941363599,1.92,4460.7,4460.6,2.9016]
[1759941363918,1.92,4460.7,4460.6,2.648]
[1759941364114,1.92,4460.7,4460.6,2.6704185]
[1759941364710,1.92,4460.7,4460.6,2.648]
[1759941368031,4.63490061,4460.7,4460.6,0.001]
[1759941368245,5.32256252,4460.7,4460.6,2.536]
[1759941370725,5.95616252,4460.7,4460.6,2.536]
[1759941371411,5.95616252,4460.7,4460.6,0.001]
[1759941371846,6.43637571,4460.7,4460.6,0.001]
[1759941374020,9.06213697,4460.7,4460.6,0.001]
[1759941377958,2.87565192,4460.2,4460.1,1e-08]
[1759941378172,6.15498859,4460.2,4460.1,1e-08]
[1759941378373,6.62808859,4460.2,4460.1,1e-08]
[1759941380162,9.16408859,4460.2,4460.1,1e-08]
[1759941380970,6.62808859,4460.2,4460.1,1e-08]
[1759941381168,5.88248859,4460.2,4460.1,1e-08]
[1759941381375,5.99384699,4460.2,4460.1,1e-08]
[1759941381544,5.5142754,4460.2,4460.1,1e-08]
[1759941382271,4.16205192,4460.2,4460.1,1e-08]
[1759941382472,4.63515192,4460.2,4460.1,1e-08]
[1759941382975,0.112,4460.4,4460.1,1e-08]
[1759941383144,2.24139863,4461.5,4460.1,1e-08]
[1759941383472,0.45435926,4461.7,4460.1,1e-08]
[1759941383673,2.69566081,4461.7,4460.9,2.24169899]
[1759941383972,2.25120239,4461.9,4461.0,2.55841649]
[1759941384179,2.24138847,4461.6,4461.0,2.55841649]
[1759941384341,2.24140938,4461.5,4461.0,2.55841649]
[1759941384657,2.24124792,4461.8,4461.0,2.536]
[1759941384864,0.01,4461.9,4461.1,0.02241599]
[1759941385065,2.2414226,4461.5,4461.0,2.536]
[1759941385240,0.01,4461.9,4461.0,2.536]
[1759941385445,2.2415996,4461.1,4461.0,2.536]
[1759941387777,2.2435996,4461.1,4461.0,2.536]
[1759941388405,2.72494039,4461.1,4461.0,2.536]
[1759941389322,0.48334079,4461.1,4461.0,2.536]
[1759941389532,0.002,4461.1,4461.0,2.536]
[1759941389708,0.002,4461.1,4461.0,3.03618633]
[1759941389908,0.002,4461.1,4461.0,3.01376984]
[1759941392315,0.002,4461.1,4461.0,5.25541969]
[1759941392935,0.002,4461.1,4461.0,5.34510568]
[1759941393102,0.002,4461.1,4461.0,5.45710568]
[1759941397105,0.002,4461.1,4461.0,6.09070568]
[1759941403439,0.002,4461.1,4461.0,5.45710568]
[1759941406872,0.002,4461.6,4461.5,2.24139863]
[1759941407081,0.002,4461.6,4461.5,5.22468524]
[1759941407368,0.002,4461.6,4461.5,5.33668524]
[1759941409460,0.002,4461.6,4461.5,2.80168524]
[1759941409662,0.002,4461.6,4461.5,5.33668524]
[1759941409866,0.002,4461.6,4461.5,5.27457374]
[1759941414048,0.002,4461.6,4461.5,0.112]
[1759941414273,0.002,4461.6,4461.5,2.646]
[1759941414572,2.24334839,4461.6,4461.5,2.646]
[1759941415178,2.24334839,4461.6,4460.1,2.24208484]
[1759941415179,1.92,4461.5,4460.1,2.24208484]
[1759941415381,2.24144887,4461.4,4461.3,0.112]
[1759941415559,4.8686786,4461.4,4461.3,2.646]
[1759941416579,5.3197786,4461.4,4461.3,2.646]
[1759941416783,4.8686786,4461.4,4461.3,2.646]
[1759941420667,5.802212,4461.4,4461.3,2.646]
[1759941421003,5.3197786,4461.4,4461.3,2.646]
[1759941421164,4.8686786,4461.4,4461.3,2.646]
[1759941421693,5.3197786,4461.4,4461.3,2.647]
[1759941422860,5.80205004,4461.4,4461.3,2.535]
[1759941423485,1.92,4461.4,4461.3,2.535]
[1759941423655,0.002,4461.6,4461.3,2.66941499]
[1759941423855,0.002,4461.6,4461.5,2.24139863]
[1759941424079,0.002,4461.6,4461.5,2.26381261]
[1759941424464,0.002,4461.6,4461.5,2.24139863]
[1759941424662,0.002,4461.6,4461.5,2.97680237]
[1759941425611,0.002,4461.6,4461.5,3.72240237]
[1759941425758,0.00044724,4461.6,4461.5,3.72240237]
[1759941426263,0.002,4462.5,4462.0,2.24114746]
[1759941426456,0.002,4462.5,4462.4,2.87454657]
[1759941426656,0.002,4462.5,4462.4,6.00687278]
[1759941426857,0.002,4462.5,4462.4,5.46286332]
[1759941428868,0.002,4462.5,4462.4,3.22191675]
[1759941429073,0.002,4462.5,4462.4,4.88794657]
[1759941429791,0.002,4462.5,4462.4,2.647]
[1759941430295,0.002,4462.5,4462.4,4.88794657]
[1759941438942,0.002,4462.6,4462.5,2.87449635]
[1759941439091,0.002,4462.6,4462.5,2.89690531]
[1759941439298,0.002,4462.6,4462.5,4.08029252]
[1759941440203,0.002,4462.6,4462.5,4.05788356]
[1759941442998,0.002,4463.0,4462.6,2.87444614]
[1759941443197,0.002,4463.0,4462.6,7.32744614]
[1759941445615,0.002,4463.0,4462.6,5.40744614]
[1759941445804,0.002,4463.0,4462.6,4.77384614]
[1759941449018,0.002,4463.0,4462.6,4.88584614]
[1759941456155,0.002,4463.0,4462.6,2.645]
[1759941456358,0.002,4463.0,4462.6,4.88584614]
[1759941460662,0.002,4463.0,4462.6,0.112]
[1759941460964,4.16084614,4462.6,4462.5,0.001]
[1759941461173,6.7598543,4462.6,4462.5,0.001]
[1759941461872,2.24104701,4462.2,4462.1,0.001]
[1759941462027,4.64398184,4462.2,4462.1,1.819]
[1759941462232,5.10598184,4462.2,4462.1,1.819]
[1759941463571,5.10598184,4462.2,4462.1,0.001]
[1759941463737,5.8406797,4462.2,4462.1,0.001]
[1759941465284,4.16104701,4462.2,4462.1,0.001]
[1759941465486,2.24104701,4462.2,4462.1,0.001]
[1759941465784,0.002,4462.7,4462.1,0.001]
[1759941466149,2.24091549,4462.5,4462.1,0.001]
[1759941466570,2.24279635,4462.7,4462.1,0.001]
[1759941466887,2.24281481,4462.7,4462.1,0.001]
[1759941467179,2.2408531,4462.6,4462.1,0.001]
[1759941467379,2.24092252,4462.5,4462.1,0.001]
[1759941468384,2.24104701,4462.2,4462.1,0.001]
[1759941470484,0.27232809,4462.5,4462.1,0.001]
[1759941470683,0.002,4462.7,4462.1,0.001]
[1759941470880,0.002,4462.7,4462.4,0.112]
[1759941471081,2.24084614,4462.6,4462.5,2.534]
[1759941472294,2.70284614,4462.6,4462.5,2.534]
[1759941473382,2.24084614,4462.6,4462.5,2.534]
[1759941473580,2.88240828,4462.6,4462.5,2.534]
[1759941475214,3.33840828,4462.6,4462.5,2.534]
[1759941476179,0.64156214,4462.6,4462.5,2.534]
[1759941476387,4.80240828,4462.6,4462.5,2.534]
[1759941478180,5.25840828,4462.6,4462.5,2.534]
[1759941478379,5.25840828,4462.6,4462.5,2.535]
[1759941479614,5.25840828,4462.6,4462.5,0.001]
[1759941482118,4.80240828,4462.6,4462.5,0.001]
[1759941482348,0.002,4462.7,4462.6,2.24084614]
[1759941482492,0.002,4462.7,4462.6,2.2632546]
[1759941483527,1e-08,4462.9,4462.8,2.24074572]
[1759941483822,1e-08,4462.9,4462.8,5.43075317]
[1759941484024,1e-08,4462.9,4462.8,5.40834572]
[1759941484231,0.002,4463.3,4463.1,2.8741951]
[1759941484393,0.002,4463.3,4463.1,2.89660105]
[1759941485231,0.002,4463.3,4463.1,2.8741951]
[1759941485499,0.002,4463.3,4463.1,2.26300105]
[1759941485920,0.002,4463.3,4463.1,2.89660105]
[1759941486119,0.002,4463.3,4463.1,3.7402271]
[1759941487136,0.002,4463.3,4463.1,4.17912107]
[1759941487335,0.002,4463.3,4463.1,4.15671512]
[1759941488809,0.002,4463.3,4463.1,4.17912107]
[1759941489511,0.002,4463.3,4463.1,4.15671512]
[1759941490549,0.002,4463.3,4463.1,4.17912107]
[1759941492113,0.002,4463.3,4463.1,4.15671512]
[1759941492313,0.002,4463.3,4463.1,4.26871512]
[1759941492735,0.002,4463.3,4463.1,4.29112107]
[1759941493050,0.002,4463.3,4463.1,4.26871512]
[1759941493346,0.002,4463.3,4463.1,6.80171512]
[1759941495726,0.002,4463.3,4463.1,6.16811512]
[1759941496757,0.002,4463.3,4463.1,6.80271512]
[1759941497861,0.01,4464.9,4464.8,2.23974198]
[1759941498058,0.01,4464.9,4464.8,4.79513939]
[1759941498267,0.01,4464.9,4464.8,4.77274198]
[1759941502261,0.01,4464.9,4464.8,2.23974198]
[1759941502468,0.01,4464.9,4464.8,4.79413939]
[1759941502647,0.01,4464.9,4464.8,5.39109976]
[1759941507877,0.01,4464.9,4464.8,5.50229976]
[1759941510814,0.01,4464.9,4464.8,6.13589976]
[1759941512166,0.01,4466.9,4466.8,2.23873914]
[1759941512365,0.01,4466.9,4466.8,4.77073914]
[1759941512556,0.01,4466.9,4466.8,2.532]
[1759941512769,0.01,4466.9,4466.8,4.77073914]
[1759941513786,0.01,4466.9,4466.8,2.532]
[1759941515405,2.24868902,4466.9,4466.8,2.532]
[1759941515602,5.24131684,4466.9,4466.8,2.532]
[1759941516086,4.80941684,4466.9,4466.8,2.532]
[1759941516254,2.23884633,4466.6,4466.0,0.45257856]
[1759941516456,2.23884633,4466.6,4465.5,4.56738946]
[1759941516457,2.23884633,4466.6,4466.1,2.531]
[1759941516656,0.01,4466.9,4466.1,2.531]
[1759941516857,2.46364635,4466.8,4466.1,2.531]
[1759941517908,0.22486532,4466.8,4466.1,2.531]
[1759941518093,0.01,4466.9,4466.2,0.02239039]
[1759941518294,2.24873623,4466.9,4466.2,0.02239039]
[1759941518595,2.23875276,4466.8,4466.2,0.02239039]
[1759941518804,2.23878999,4466.7,4466.2,0.02239039]
[1759941518984,2.23886876,4466.6,4466.1,2.531]
[1759941519363,2.23879937,4466.7,4466.1,2.531]
[1759941519696,0.64074892,4466.6,4466.1,2.531]
[1759941520094,2.23880119,4466.7,4466.1,2.531]
[1759941521208,1.92,4466.8,4466.1,2.531]
[1759941521209,2.23874239,4466.8,4466.1,2.531]
[1759941521519,0.01,4466.9,4466.2,2.23901582]
[1759941521670,0.01,4466.9,4466.3,0.02238989]
[1759941521875,0.01,4466.9,4466.4,2.531]
[1759941522079,0.22486296,4466.8,4466.5,0.02238889]
[1759941522309,0.01,4466.9,4466.8,0.1112]
[1759941522510,0.01,4466.9,4466.8,4.88093914]
[1759941523276,2.23874896,4466.8,4466.0,0.44689222]
[1759941523482,2.23878528,4466.8,4466.1,2.531]
[1759941523701,0.01,4466.9,4466.2,2.531]
[1759941524005,2.23876486,4466.8,4466.2,2.531]
[1759941524208,2.33687649,4466.7,4466.2,2.531]
[1759941524986,2.33687649,4466.7,4466.2,2.55339039]
[1759941525184,2.65566656,4466.7,4466.2,2.531]
[1759941525935,0.01,4466.9,4466.3,0.02238989]
[1759941526090,0.01,4466.9,4466.2,2.531]
[1759941526290,0.01,4466.9,4466.6,2.23880034]
[1759941526607,0.01,4466.9,4466.8,2.23873914]
[1759941526802,0.01,4466.9,4466.7,2.531]
[1759941527191,0.22486484,4466.8,4466.7,2.531]
[1759941527908,0.01,4466.9,4466.7,2.531]
[1759941528113,0.01,4466.9,4466.8,0.02238739]
[1759941529234,0.01,4466.9,4466.7,2.531]
[1759941529905,0.01,4466.9,4466.8,0.02238739]
[1759941531398,0.01,4466.9,4466.7,2.531]
[1759941532495,0.012,4466.9,4466.7,2.531]
[1759941533529,0.012,4466.9,4466.8,0.1112]
[1759941535830,2.25068902,4466.9,4466.8,0.1112]
[1759941536057,4.85995792,4466.9,4466.8,0.1112]
[1759941536276,1.92,4466.8,4464.1,2.338]
[1759941536477,1.92,4466.6,4466.1,0.1112]
[1759941536630,2.23903989,4466.2,4466.1,0.1112]
[1759941536953,4.65504402,4466.2,4466.1,0.1112]
[1759941537269,5.11924402,4466.2,4466.1,0.1112]
[1759941537753,1.92,4466.2,4466.1,0.1112]
[1759941537960,1.92,4466.7,4465.9,0.002]
[1759941538256,1.92,4466.5,4465.9,0.002]
[1759941538423,2.23893963,4466.4,4465.9,0.002]
[1759941539530,2.23884595,4466.6,4465.9,0.002]
[1759941539957,2.23890561,4466.5,4465.9,0.002]
[1759941540150,1.92,4466.5,4465.9,0.002]
[1759941540657,2.23882702,4466.7,4465.9,2.2635779]
[1759941541060,2.23885354,4466.6,4465.9,0.0243919]
[1759941541278,2.23895415,4466.4,4465.9,0.002]
[1759941541430,2.23899148,4466.3,4465.9,0.002]
[1759941541628,2.23885176,4466.6,4465.9,0.002]
[1759941541852,2.23902544,4466.3,4465.9,0.002]
[1759941542164,2.23895305,4466.4,4465.9,0.002]
[1759941543231,2.23900574,4466.3,4465.9,0.002]
[1759941544684,0.46230518,4466.5,4465.9,0.002]
[1759941544984,1.92,4466.4,4465.9,0.002]
[1759941546293,2.38230518,4466.5,4465.9,0.002]
[1759941546451,1.92,4466.5,4465.9,0.002]
[1759941546658,2.23889838,4466.5,4465.9,0.002]
[1759941547373,2.23884356,4466.6,4465.9,0.002]
[1759941547763,2.23890062,4466.5,4465.9,0.002]
[1759941547967,2.23885226,4466.6,4465.9,0.002]
[1759941548166,2.23885226,4466.6,4466.4,0.1112]
[1759941548391,2.23885226,4466.6,4466.5,2.531]
[1759941549302,1.92,4466.7,4466.5,2.531]
[1759941549501,0.012,4466.9,4466.7,2.23874566]
[1759941549811,0.012,4466.9,4466.8,2.26112653]
[1759941550216,0.012,4466.9,4466.8,2.23873914]
[1759941550378,0.012,4466.9,4466.8,2.26112653]
[1759941550576,0.012,4466.9,4466.8,2.23873914]
[1759941550900,0.012,4466.9,4466.8,2.96601869]
[1759941551428,0.012,4466.9,4466.8,2.98840608]
[1759941551996,1e-08,4466.9,4466.8,3.59961869]
[1759941552392,1e-08,4466.9,4466.8,3.62200608]
[1759941552597,0.002,4467.4,4467.3,2.23848857]
[1759941552793,0.002,4467.4,4467.3,5.87317846]
[1759941553028,0.002,4467.4,4467.3,5.85079358]
[1759941553823,0.002,4467.4,4467.3,6.30064429]
[1759941554213,0.002,4467.4,4467.3,5.66704429]
[1759941555123,0.002,4467.4,4467.3,3.13604429]
[1759941555294,0.002,4467.4,4467.3,5.68942917]
[1759941555629,0.002,4467.4,4467.3,5.66704429]
[1759941559403,0.002,4467.4,4467.3,5.77824429]
[1759941562631,0.002,4467.4,4467.3,3.53975572]
[1759941563011,0.002,4467.4,4467.3,5.77824429]
[1759941568364,0.002,4467.4,4467.3,3.53975572]
[1759941568523,0.002,4467.4,4467.3,3.09205071]
[1759941568853,0.002,4467.4,4467.3,2.6422]
[1759941569051,0.002,4467.4,4467.3,2.6412]
[1759941570462,4.59623846,4467.4,4467.3,2.6412]
[1759941570956,2.60346003,4467.3,4466.8,0.001]
[1759941571124,0.6336,4467.2,4466.8,0.001]
[1759941571329,4.15868902,4466.9,4466.8,0.001]
[1759941571729,4.59448902,4466.9,4466.8,0.001]
[1759941573450,1.92,4466.9,4466.8,0.001]
[1759941573672,4.35068902,4466.9,4466.8,0.001]
[1759941574275,4.78648902,4466.9,4466.8,0.001]
[1759941575679,2.112,4466.9,4466.8,0.001]
[1759941575980,4.59448902,4466.9,4466.8,0.001]
[1759941577951,9.15644255,4466.9,4466.8,0.001]
[1759941581351,9.79004255,4466.9,4466.8,0.001]
[1759941582669,8.72064255,4466.9,4466.8,0.001]
[1759941582870,4.15868902,4466.9,4466.8,0.1122]
[1759941584251,5.72091221,4466.9,4466.8,0.1122]
[1759941585223,5.25461221,4466.9,4466.8,0.1122]
[1759941585786,5.72091221,4466.9,4466.8,0.1122]
[1759941592603,3.01592319,4466.9,4466.8,0.1122]
[1759941592926,4.15868902,4466.9,4466.8,0.1122]
[1759941595003,1.92,4466.9,4466.8,0.1122]
[1759941595200,4.15868902,4466.9,4466.8,0.1122]
[1759941595617,1.92,4466.9,4466.8,0.1122]
[1759941596018,4.15868902,4466.9,4466.8,0.1122]
[1759941600336,5.73778096,4466.9,4466.8,0.1122]
[1759941601550,6.19528096,4466.9,4466.8,0.1122]
[1759941601756,5.73778096,4466.9,4466.8,0.1122]
[1759941602450,4.64165724,4466.9,4466.8,0.1122]
[1759941604333,5.09915724,4466.9,4466.8,0.1122]
[1759941607915,4.64165724,4466.9,4466.8,0.1122]
[1759941608254,5.09915724,4466.9,4466.8,0.1122]
[1759941613034,2.87248951,4466.5,4466.4,0.001]
[1759941613348,4.79253963,4466.4,4466.3,0.001]
[1759941613548,3.32563546,4466.4,4466.3,0.001]
[1759941613754,2.72190785,4466.4,4466.3,0.001]
[1759941613943,4.64190785,4466.4,4466.3,0.001]
[1759941614121,5.09940785,4466.4,4466.3,0.001]
[1759941614329,4.64190785,4466.4,4466.3,0.001]
[1759941614538,5.38469521,4466.4,4466.3,0.001]
[1759941614743,5.84219521,4466.4,4466.3,2.535]
[1759941615228,6.47579521,4466.4,4466.3,2.535]
[1759941615824,6.47579521,4466.4,4466.3,0.001]
[1759941618334,7.0785874,4466.4,4466.3,0.001]
[1759941618831,9.00979521,4466.4,4466.3,0.001]
[1759941620261,6.47579521,4466.4,4466.3,0.001]
[1759941620559,7.07828605,4466.4,4466.3,0.001]
[1759941622364,7.75060844,4466.4,4466.3,0.001]
[1759941623559,7.1481176,4466.4,4466.3,0.001]
[1759941627586,7.75060844,4466.4,4466.3,0.001]
[1759941629143,6.5145176,4466.4,4466.3,0.001]
[1759941629375,5.77173024,4466.4,4466.3,0.001]
[1759941631186,1.15529061,4466.4,4466.3,0.001]
[1759941631477,4.59883963,4466.4,4466.3,0.001]
[1759941634369,5.23243963,4466.4,4466.3,0.001]
[1759941634570,6.38661236,4466.4,4466.3,0.001]
[1759941634774,7.81767557,4466.4,4466.3,0.001]
[1759941641679,0.48194525,4466.4,4466.3,0.001]
[1759941641881,0.48194525,4466.4,4466.3,0.1122]
[1759941642180,0.60249084,4467.0,4466.3,0.1132]
[1759941642181,2.2386496,4467.0,4466.3,0.1132]
[1759941642481,0.4825898,4466.9,4466.3,0.02438989]
[1759941642695,2.23859655,4467.1,4466.3,2.26336637]
[1759941643009,2.23869152,4466.9,4466.8,0.1112]
[1759941643195,4.6412364,4466.9,4466.8,2.6442]
[1759941644096,4.15869152,4466.9,4466.8,2.6442]
[1759941645285,4.16069152,4466.9,4466.8,2.6442]
[1759941645986,1.922,4466.9,4466.8,2.6442]
[1759941647294,4.16068902,4466.9,4466.8,2.6442]
[1759941649012,1.922,4466.9,4466.8,2.6432]